Cogmind - Beta 17.1 @@@ ROGUE MODE // 2026.09.13 @ 20:08:16 Player: SunShine214 Result: Destroyed by H-61 Shepherd with Heavy Assault Cannon Performance ------------- Evolutions (4) 2000 Regions Visited (7) 1400 Robots Destroyed (149) 745 Value Destroyed (4371) 4371 Prototype IDs (14) 280 Alien Tech Used (0) 0 Bonus (1027) 1027 TOTAL SCORE: 9823 Bonus ------- High Alert Combat Kills 133 Follower Combat Kills 94 Registered with UFD 300 Met Optimus in HQ 500 Cogmind --------- Core Integrity 0/850 Matter 18/300 Energy 84/100 System Corruption 1% Temperature Cool (0) Movement Core (350) Ox6 Location -6/Factory Parts ------- > --- POWER (1) -------- (None) > --- PROPULSION (5) --- (None) > --- UTILITY (7) ------ Large Storage Unit Enhanced Optical Array Hacking Suite Hacking Suite System Shield A0-MCA's Component Scanner > --- WEAPON (2) ------- (None) > --- INVENTORY (15) --- Light Deuterium Engine Cesium-ion Thruster Cesium-ion Thruster Cesium-ion Thruster Cesium-ion Thruster Gravity Neutralizer Deep Structural Scanner Hacking Suite Improved Hacking Suite Plasma Cutter Shock Maul Peak State ------------ > --- POWER ------------ Angular Momentum Engine > --- PROPULSION ------- Improved Treads Armored Treads Medium Treads > --- UTILITY ---------- Large Storage Unit Enhanced Optical Array Improved Targeting Computer Hacking Suite Hacking Suite System Shield A0-MCA's Component Scanner > --- WEAPON ----------- Heavy Plasma Cannon Magnetic Acceleration Cannon > --- INVENTORY -------- Light Deuterium Engine Cesium-ion Thruster Cesium-ion Thruster Cesium-ion Thruster Cesium-ion Thruster Cesium-ion Thruster Improved Cesium-ion Thruster Gravity Neutralizer Deep Structural Scanner Hacking Suite Improved Hacking Suite Scatter Rocket Array Scatter Rocket Array Plasma Cutter Shock Maul [Rating: 56] Favorites ----------- Power Improved Ion Engine Engine Improved Ion Engine Power Core Light Nuclear Core Propulsion Light Treads Treads Light Treads Leg Aluminum Leg Wheel Wheel Flight Unit Cesium-ion Thruster Utility Large Storage Unit Device Heat Sink Storage Large Storage Unit Processor Improved Targeting Computer Hackware Hacking Suite Protection Improved Light Armor Plating Weapon Advanced Beam Cannon Energy Gun Small Laser Energy Cannon Advanced Beam Cannon Ballistic Gun Light Assault Rifle Ballistic Cannon Magnetic Acceleration Cannon Launcher Scatter Rocket Array Impact Weapon Hammer Build | -11 -10 -9 -8 -8 -8 -8 -6 ------- Run | Yrd Mat Mat Mat Sto Rec Scr Fac Slots Evolved 8 | . . 2 2 . . . 4 Power . | . . . . . . . . Propulsion 3 | . . . 1 . . . 2 Utility 5 | . . 2 1 . . . 2 Weapon . | . . . . . . . . Parts Attached 96 | 6 10 27 8 21 3 9 12 Power 9 | 1 2 2 . 1 1 1 1 Engine 8 | 1 1 2 . 1 1 1 1 Core 1 | . 1 . . . . . . Reactor . | . . . . . . . . Propulsion 35 | 2 3 10 2 9 1 5 3 Treads 27 | 2 1 8 2 9 1 3 1 Leg 2 | . 2 . . . . . . Wheel 1 | . . . . . . . 1 Hover . | . . . . . . . . Flight 5 | . . 2 . . . 2 1 Utility 28 | 1 3 9 3 5 1 3 3 Device 6 | . 1 2 . 1 1 1 . Storage 4 | 1 1 1 . 1 . . . Processor 4 | . . . 1 1 . 1 1 Hackware 3 | . . . . . . 1 2 Protection 11 | . 1 6 2 2 . . . Artifact . | . . . . . . . . Weapon 24 | 2 2 6 3 6 . . 5 Energy Gun 8 | . 2 3 3 . . . . Energy Cannon 6 | . . 1 . 4 . . 1 Ballistic Gun 4 | 2 . 1 . . . . 1 Ballistic Cannon 1 | . . . . . . . 1 Launcher 3 | . . 1 . . . . 2 Special Weapon . | . . . . . . . . Impact Weapon 2 | . . . . 2 . . . Slashing Weapon . | . . . . . . . . Piercing Weapon . | . . . . . . . . Special Melee Weapon . | . . . . . . . . Unidentified Prototypes 1 | . . . . 1 . . . Parts Lost 36 | . 8 7 3 4 1 . 13 Power 3 | . 1 . . . 1 . 1 Propulsion 12 | . 3 1 . 1 . . 7 Utility 9 | . 1 4 1 2 . . 1 Weapon 12 | . 3 2 2 1 . . 4 Highest Loss Streak 8 | . 3 2 2 3 1 . 8 To Critical Strikes 2 | . . 1 . . . . 1 Average Backups 11 | . 2 10 14 14 14 14 14 Power . | . . . . . . . . Propulsion 5 | . . 5 8 8 6 5 5 Utility 3 | . . 2 2 3 5 5 4 Weapon 2 | . 2 1 2 2 3 3 2 Tool/Special . | . . . . . . . . Unused Backups 21 | . 1 4 2 3 . 1 10 Power 1 | . . 1 . . . . . Propulsion 5 | . . 1 . 2 . . 2 Utility 8 | . . 1 1 1 . . 5 Weapon 6 | . 1 1 1 . . 1 2 Tool/Special 1 | . . . . . . . 1 Average Slot Usage (%) 93 | . 89 97 98 96 93 99 82 Engine 8 | . 8 11 9 9 5 8 5 Treads 22 | . 22 16 26 26 27 26 17 Leg 1 | . . 5 . . . . . Device 6 | . 11 10 3 5 7 2 . Storage 8 | . 7 11 9 9 9 8 6 Processor 11 | . . . 8 17 18 24 19 Hackware 3 | . . . . . . 4 19 Protection 9 | . 4 20 23 11 9 5 . Energy Gun 6 | . 16 12 17 2 . . . Energy Cannon 8 | . . 4 . 11 16 18 7 Ballistic Gun 3 | . 11 4 . . . . . Peak Build Rating 56 | 6 9 18 25 29 29 39 56 Average Rating 25 | 4 7 16 22 24 26 34 50 On Entrance 16 | . 6 6 16 18 23 27 39 Avg Prop Armor Cover (%) 8 | . . 5 . . . 7 17 Naked Turns . | . . . . . . . . Heaviest Build 51 | 13 18 40 48 41 40 39 51 Greatest Support 71 | 40 40 40 60 60 62 65 71 Greatest Overweight (x) 6 | . 5 1 1 1 . . 6 Average Overweight (x) . | . . . . . . . . Largest Inventory Capacity 15 | 8 10 15 15 15 15 15 15 Average Capacity 12 | 6 7 12 15 15 15 14 15 Most Carried 15 | 1 4 15 15 15 15 15 15 Average Carried 11 | . 2 10 14 14 14 14 14 Final Capacity 15 | 8 10 15 15 15 15 15 15 Final Carried 15 | 1 3 15 15 15 14 15 11 Class Distribution -------------------- 36% | Scavenger-Mutant 26% | Mutant 23% | Commander-Mutant 13% | Hacker-Mutant Dominant Class ---------------- Mutant | -10/Materials Scavenger-Mutant | -9/Materials Scavenger-Mutant | -8/Materials Scavenger-Mutant | -8/Storage Commander-Mutant | -8/Recycling Commander-Mutant | -8/Scraptown Hacker-Mutant | -6/Factory Resources | -11 -10 -9 -8 -8 -8 -8 -6 ----------- Run | Yrd Mat Mat Mat Sto Rec Scr Fac Matter Collected 1908 | 280 265 457 126 195 207 50 328 Remotely 150 | . . 71 79 . . . . Salvage Created 5543 | 74 1006 1360 537 1476 344 . 746 Parts 273 | 4 41 72 21 99 9 . 27 Haulers Intercepted 11 | . 1 2 . 6 . . 2 Recyclers Shooed 8 | . . 2 1 1 2 . 2 Parts Field Recycled . | . . . . . . . . Retrieved Matter . | . . . . . . . . Parts Self-Destructed . | . . . . . . . . Prevented . | . . . . . . . . Parts Restored . | . . . . . . . . Kills | -11 -10 -9 -8 -8 -8 -8 -6 ------- Run | Yrd Mat Mat Mat Sto Rec Scr Fac Combat Hostiles Destroyed 103 | . 18 27 7 26 5 . 20 Melee 3 | . . . . 3 . . . Guns 46 | . 18 21 7 . . . . Cannons 39 | . . 5 . 21 3 . 10 AOE 10 | . . 1 . . . . 9 Classes Destroyed 15 | 1 4 5 2 . 1 . 2 Worker 14 | . 1 2 1 6 . . 4 Builder 3 | . 1 1 1 . . . . Tunneler 1 | . . . 1 . . . . Hauler 11 | . 1 2 . 6 . . 2 Recycler 11 | 1 2 2 2 2 2 . . Operator 4 | . . 1 . 2 . . 1 Watcher 2 | . . 1 . . . . 1 Swarmer 22 | . . 4 . 11 . . 7 Grunt 55 | . 18 17 2 9 1 . 8 Duelist 2 | . . 1 1 . . . . Protector 1 | . . . . . 1 . . Sentry 16 | . . 5 2 5 3 . 1 Specialist 2 | . . . . . . . 2 Hunter 3 | . . . 2 1 . . . Programmer 2 | . . . . . . . 2 Best Kill Streak 11 | 1 3 11 7 8 2 . 6 Combat Bots Only 7 | . 3 7 3 7 2 . 5 Max Kills in Single Turn 6 | 1 1 1 1 2 1 . 6 Gunslinging . | . . . . . . . . Exploded 3 | . . 1 . . . . 3 Melee 1 | . . . . 1 . . . Uniques/NPCs Destroyed . | . . . . . . . . Combat | -11 -10 -9 -8 -8 -8 -8 -6 -------- Run | Yrd Mat Mat Mat Sto Rec Scr Fac Hostile Shots Fired 652 | . 109 163 62 133 16 . 169 Missed 153 | . 20 38 9 34 3 . 49 Hits 499 | . 89 125 53 99 13 . 120 Melee 4 | . . 2 2 . . . . Projectile 495 | . 89 123 51 99 13 . 120 Critical Strikes 13 | . 2 2 3 2 . . 4 Part Disruptions 2 | . . . . . . . 2 Damage Taken 7559 | . 1135 1493 902 1328 189 . 2512 Core 1502 | . 228 107 78 205 26 . 858 Absorbed by Shields . | . . . . . . . . Core Remaining (%) 56 | 100 8 73 . . . 43 . Volleys Fired 340 | 5 96 93 23 71 5 . 47 Largest 2 | 2 2 2 2 2 2 . 2 Hottest 158 | 40 80 121 118 136 136 . 158 Shots Fired 653 | 10 189 173 39 141 10 . 91 Gun 371 | 10 189 131 39 2 . . . Cannon 275 | . . 40 . 139 10 . 86 Launcher 7 | . . 2 . . . . 5 Special . | . . . . . . . . Kinetic 178 | 10 103 38 . . . . 27 Thermal 447 | . 86 133 18 141 10 . 59 Explosive 7 | . . 2 . . . . 5 Electromagnetic 21 | . . . 21 . . . . Robot Hit Streak 21 | 5 13 13 8 8 7 . 21 Robot Miss Streak 5 | 4 3 4 2 3 1 . 5 Penetration Max . | . . . . . . . . Secondary Targets 7 | . 2 3 2 . . . . Max Gunslinging Chain 1 | . 1 1 1 . . . . Shots Hit Robots 439 | 6 122 111 27 102 13 . 58 Core Hits 247 | 2 51 64 17 46 6 . 61 Critical Kills 3 | . . . . 2 . . 1 Critical Parts Destroyed 4 | . . 2 . 1 1 . . Critical Strikes 7 | . . 2 . 3 1 . 1 Meltdown 3 | . . . . 2 . . 1 Destroy 2 | . . 2 . . . . . Smash 2 | . . . . 1 1 . . Melee Attacks 28 | . . . . 22 6 . . Impact 28 | . . . . 22 6 . . Slashing . | . . . . . . . . Piercing . | . . . . . . . . Sneak Attacks 4 | . . . . 2 2 . . Combat Hostiles . | . . . . . . . . Follow-up Attacks . | . . . . . . . . Damage Inflicted 11285 | 63 1320 1917 627 2431 493 . 4434 Guns 3236 | 63 1316 1322 501 34 . . . Cannons 4168 | . . 472 . 1883 116 . 1697 Explosions 2889 | . . 99 87 . . . 2703 Melee 795 | . . . . 468 327 . . Ramming 197 | . 4 24 39 46 50 . 34 Kinetic 1570 | 63 650 395 . . . . 462 Thermal 6952 | . 666 1399 325 1917 116 . 2529 Explosive 1508 | . . 99 . . . . 1409 Electromagnetic 263 | . . . 263 . . . . Impact 795 | . . . . 468 327 . . Slashing . | . . . . . . . . Piercing . | . . . . . . . . Highest Corruption 1 | . . 1 . 1 1 . 1 Average Corruption 1 | . . 1 . 1 1 . 1 Corruption Purged . | . . . . . . . . Corruption Blocked . | . . . . . . . . Effects 18 | . . 4 . 3 6 . 5 Message Errors 4 | . . 2 . . 2 . . Matter Fused 6 | . . 1 . 2 1 . 2 Energy Discharges 3 | . . 1 . . 1 . 1 Parts Rejected 1 | . . . . . . . 1 Parts Fused 1 | . . . . . . . 1 Data Loss (minor) 1 | . . . . . 1 . . Misfires 1 | . . . . 1 . . . Alerts 1 | . . . . . 1 . . Overload Shots . | . . . . . . . . Overflow Damage 608 | . . 4 . 111 93 . 400 Projectiles 69 | . . 4 . 15 . . 50 Explosions 350 | . . . . . . . 350 Melee 189 | . . . . 96 93 . . Knockbacks 3 | . . . . . . . 3 Impact . | . . . . . . . . Kinetic 2 | . . . . . . . 2 Secondary 1 | . . . . . . . 1 Self-Inflicted Damage 363 | . . . 39 . . . 324 Shots 9 | . . . 1 . . . 8 Rammed 28 | . 2 7 5 3 5 . 6 Targets Rammed 39 | . 2 9 9 6 7 . 6 Kicked 2 | . . 2 . . . . . Crushed 9 | . . . 4 3 2 . . Highest Temperature 537 | . 27 424 424 537 24 . 405 Average Temperature 118 | . 9 104 204 130 11 . 146 Received Heat Transfer 2628 | . 666 603 360 657 54 . 288 Effects 27 | . . 3 13 9 . . 2 Shutdowns 6 | . . 1 1 2 . . 2 Energy Bleed 3 | . . 1 1 1 . . . Interference 11 | . . 1 10 . . . . Matter Decay 3 | . . . 1 2 . . . Short Circuit 2 | . . . . 2 . . . Damage (minor) 2 | . . . . 2 . . . Siege Activations . | . . . . . . . . Martial Activations . | . . . . . . . . Shielding Activations . | . . . . . . . . Robots Disrupted . | . . . . . . . . Combat Hostiles . | . . . . . . . . Robots Corrupted 4 | . . . . 2 2 . . Combat Hostiles 3 | . . . . 1 2 . . Parts Fried 7 | . . . 2 2 3 . . Impact Corruptions 7 | . . . . 3 4 . . Robots Melted 3 | . . . . 2 . . 1 Combat Hostiles 2 | . . . . 1 . . 1 Parts Melted 23 | . 3 9 . 5 . . 6 Heat Transferred 11934 | . 1500 3251 618 3478 219 . 2868 Parts Sabotaged . | . . . . . . . . Parts Stolen . | . . . . . . . . Parts Stripped . | . . . . . . . . Power Chain Reactions 1 | . . . 1 . . . . Alert | -11 -10 -9 -8 -8 -8 -8 -6 ------- Run | Yrd Mat Mat Mat Sto Rec Scr Fac Maximum Alert Level 2 | . . 1 . 2 1 . 2 Low Security (%) 83 | 100 100 81 100 59 96 . 73 Level 1 13 | . . 18 . 32 3 . 19 Level 2 2 | . . . . 7 . . 6 Level 3 . | . . . . . . . . Level 4 . | . . . . . . . . Level 5 . | . . . . . . . . High Security . | . . . . . . . . Max Security . | . . . . . . . . Peak Influence 524 | 5 105 301 129 515 216 . 524 Initial 196 | . 3 21 125 42 196 . . Average 93 | . 31 87 87 167 98 . 113 Influence Increases 3687 | 5 517 797 244 872 114 . 1138 Destroy 0b10 Robot/C 2120 | . 360 540 140 520 80 . 480 Destroy 0b10 Robot/NC 235 | 5 25 45 25 80 15 . 40 Destroy Leader 536 | . 82 146 50 142 . . 116 Allied During Kill 47 | . . . . . 4 . 43 Successful Hack 93 | . 5 20 8 23 15 . 22 Disable Machine 390 | . . 15 . 45 . . 330 Destroy Structure 116 | . . 1 6 2 . . 107 Lose Combat Pursuer 150 | . 45 30 15 60 . . . Influence Decreases 3193 | . 471 551 440 469 618 . 644 Entered New Map 571 | . 2 30 172 59 308 . . Time Decay 2136 | . 399 471 238 370 300 . 358 Lost Part 330 | . 70 50 30 40 10 . 130 Lost Ally 120 | . . . . . . . 120 Purge Threat 36 | . . . . . . . 36 Squads Dispatched 29 | . 4 5 1 8 . . 11 Investigation 11 | . 3 3 . 3 . . 2 Extermination 3 | . . . . . . . 3 Reinforcement 12 | . 1 2 1 2 . . 6 Assault . | . . . . . . . . Garrison 3 | . . . . 3 . . . Intercept . | . . . . . . . . Searches Triggered . | . . . . . . . . Construction Impeded . | . . . . . . . . Haulers Reinforced 1 | . . . . . . . 1 Active Scanning Responses . | . . . . . . . . Cargo Convoy Interrupts 1 | . . . . . . . 1 Stealth | -11 -10 -9 -8 -8 -8 -8 -6 --------- Run | Yrd Mat Mat Mat Sto Rec Scr Fac Distress Signals 11 | . 2 3 2 3 . . 1 Communications Jammed . | . . . . . . . . Distress Signals . | . . . . . . . . Times Spotted 165 | . 33 35 13 43 6 . 35 Peak Tracking Total 9 | . 4 5 5 7 3 . 9 Tactical Retreats 8 | . 2 2 1 3 . . . Traps | -11 -10 -9 -8 -8 -8 -8 -6 ------- Run | Yrd Mat Mat Mat Sto Rec Scr Fac Traps Triggered 6 | . 2 2 . 1 . . 1 Indirectly . | . . . . . . . . Trap Hack Attempts . | . . . . . . . . Triggered . | . . . . . . . . Disarmed 4 | . 4 . . . . . . Reprogrammed . | . . . . . . . . Reused . | . . . . . . . . Traps Extracted . | . . . . . . . . Installed . | . . . . . . . . Triggered . | . . . . . . . . Machines | -11 -10 -9 -8 -8 -8 -8 -6 ---------- Run | Yrd Mat Mat Mat Sto Rec Scr Fac Machines Disabled 26 | . . 1 . 3 . . 22 Max in Single Turn 15 | . . 1 . 1 . . 15 Machines Repaired . | . . . . . . . . Machines Dismantled . | . . . . . . . . Machines Sabotaged . | . . . . . . . . Overloaded Fab Kills . | . . . . . . . . Hacking | -11 -10 -9 -8 -8 -8 -8 -6 --------- Run | Yrd Mat Mat Mat Sto Rec Scr Fac Machines Accessed 43 | . 5 5 4 7 12 1 9 Terminals 29 | . 4 5 4 6 5 . 5 Fabricators 1 | . . . . . . . 1 Repair Stations . | . . . . . . . . Recycling Units 10 | . 1 . . . 7 . 2 Scanalyzers 1 | . . . . . . . 1 Garrison Access 1 | . . . . 1 . . . Total Hacks 124 | . 14 13 9 18 29 21 20 Successful 54 | . 5 3 3 3 11 21 8 Failed 70 | . 9 10 6 15 18 . 12 Catastrophic 12 | . 3 3 1 2 1 . 2 Database Lockouts . | . . . . . . . . Manual 28 | . . 5 4 1 5 . 13 Terminals 76 | . 10 13 9 14 17 . 13 Fabricators 1 | . . . . . . . 1 Repair Stations . | . . . . . . . . Recycling Units 18 | . 4 . . . 12 . 2 Scanalyzers 4 | . . . . . . . 4 Garrison Access 4 | . . . . 4 . . . Terminal Hacks 43 | . 4 3 3 3 7 21 2 Record 21 | . . . . . . 21 . Part Schematic 6 | . . . . . 6 . . Prototype ID Bank 1 | . 1 . . . . . . Open Door 2 | . . . . 2 . . . Branch Access Points 3 | . . 1 1 1 . . . Alert Level 2 | . 1 . . . 1 . . Unreport Threat 2 | . . . . . . . 2 Disarm Traps 1 | . 1 . . . . . . Recall Investigation 1 | . . 1 . . . . . Recall Reinforcements 1 | . . . 1 . . . . Zone Layout 3 | . 1 1 1 . . . . Fabricator Hacks 1 | . . . . . . . 1 Network Status 1 | . . . . . . . 1 Repair Station Hacks . | . . . . . . . . Recycling Unit Hacks 5 | . 1 . . . 4 . . Retrieve Components 5 | . 1 . . . 4 . . Scanalyzer 3 | . . . . . . . 3 Retrieve Study 3 | . . . . . . . 3 Garrison Access Hacks . | . . . . . . . . Unauthorized Hacks 2 | . . . . . . . 2 Terminals . | . . . . . . . . Fabricators . | . . . . . . . . Repair Stations . | . . . . . . . . Recycling Units 2 | . . . . . . . 2 Fedlink 2 | . . . . . . . 2 Scanalyzers . | . . . . . . . . Garrison Access . | . . . . . . . . Data Cores Recovered . | . . . . . . . . Used . | . . . . . . . . Hacking Detections 31 | . 4 5 2 5 10 . 5 Full Trace Events 15 | . 2 3 . 3 7 . . Feedback Events . | . . . . . . . . Feedback Blocked . | . . . . . . . . Robot Schematics Acquired . | . . . . . . . . Robots Built . | . . . . . . . . Authchips . | . . . . . . . . Time . | . . . . . . . . Total Robot Build Rating . | . . . . . . . . Part Schematics Acquired 6 | . . . . . 6 . . Parts Built . | . . . . . . . . Authchips . | . . . . . . . . Time . | . . . . . . . . Total Part Build Rating . | . . . . . . . . Part Studies Acquired 3 | . . . . . . . 3 Parts Repaired . | . . . . . . . . Time . | . . . . . . . . Parts Recycled . | . . . . . . . . Recycled Matter . | . . . . . . . . Retrieved Matter . | . . . . . . . . Retrieved Components 16 | . 10 . . . 6 . . Parts Scanalyzed . | . . . . . . . . Part Schematics Acquired . | . . . . . . . . Parts Damaged . | . . . . . . . . Bothacking | -11 -10 -9 -8 -8 -8 -8 -6 ------------ Run | Yrd Mat Mat Mat Sto Rec Scr Fac Used RIF Installer . | . . . . . . . . Robots Hacked . | . . . . . . . . Non-combat . | . . . . . . . . Combat . | . . . . . . . . Robot Hacks Applied . | . . . . . . . . Relay Couplers Released . | . . . . . . . . Fabnet Peak Effective % . | . . . . . . . . Robots Rewired 10 | . . . . . 10 . . Allies Hacked . | . . . . . . . . Hacks Repelled . | . . . . . . . . Allies | -11 -10 -9 -8 -8 -8 -8 -6 -------- Run | Yrd Mat Mat Mat Sto Rec Scr Fac Total Allies 10 | . . . . . 10 . . Largest Group 10 | . . . . . 10 9 7 Highest-Rated Group 170 | . . . . . 170 160 127 Highest-Rated Ally 27 | . . . . . 27 27 21 Initial UFD Resources 23 | . . . . . . . 23 Total Orders . | . . . . . . . . Ally Attacks 34 | . . . . . . . 34 Total Damage 697 | . . . . . . . 697 Kills 4 | . . . . . . . 4 Allies Corrupted . | . . . . . . . . Allies Melted . | . . . . . . . . Intel | -11 -10 -9 -8 -8 -8 -8 -6 ------- Run | Yrd Mat Mat Mat Sto Rec Scr Fac Active Infowar (turns) 4060 | . . . . 943 720 1163 1234 Optics 4060 | . . . . 943 720 1163 1234 Robot Analysis Total . | . . . . . . . . Derelict Logs Recovered . | . . . . . . . . Drone Launches . | . . . . . . . . Drone Recoveries . | . . . . . . . . Exploration | -11 -10 -9 -8 -8 -8 -8 -6 ------------- Run | Yrd Mat Mat Mat Sto Rec Scr Fac Turns Passed 7457 | 78 1315 1482 510 955 720 1163 1234 Spaces Moved 3384 | 36 492 541 197 371 367 791 589 Core 7 | 2 4 . . . . . 1 Treads 3162 | 34 479 493 197 371 367 673 548 Legs 57 | . 9 48 . . . . . Wheels 38 | . . . . . . . 38 Hover . | . . . . . . . . Flight 120 | . . . . . . 118 2 Fastest Speed 29 | 50 120 120 160 160 155 29 104 Average Speed 159 | 153 160 174 160 160 156 137 175 Slowest Speed 350 | 160 300 240 240 240 160 158 350 Overloaded Moves . | . . . . . . . . Propulsion Burnouts . | . . . . . . . . Robots Hopped . | . . . . . . . . Potential Cave-ins . | . . . . . . . . Cave-ins Triggered . | . . . . . . . . Exploration Rate (%) 47 | 4 77 49 20 58 93 55 25 Regions Visited 7 Branch Regions 3 Pre-discovered Areas 6 | . . . . . . 5 1 Known Exits Taken 2 | . . . 1 1 . . . Unknown Exits Taken 5 | 1 1 1 . . 1 1 . Scrap Searched 3 | . . . . . . 3 . Spaces Dug 2 | . . . . . . . 2 Terrain Destroyed 164 | . . . 8 . . . 156 Melee . | . . . . . . . . Projectile 16 | . . . . . . . 16 AOE 148 | . . . 8 . . . 140 Terrain Rammed . | . . . . . . . . Walls Destroyed . | . . . . . . . . Machines Disabled . | . . . . . . . . Actions | -11 -10 -9 -8 -8 -8 -8 -6 --------- Run | Yrd Mat Mat Mat Sto Rec Scr Fac Total 4732 | 47 836 895 349 559 485 868 693 Wait 636 | . 229 185 95 30 38 36 23 Move 3377 | 35 491 540 196 370 366 790 589 Hop . | . . . . . . . . Pick Up 66 | 1 5 19 9 10 1 15 6 Fast Attach 24 | 6 5 5 . 2 2 1 3 Attach 22 | . 3 5 4 3 . 1 6 Detach . | . . . . . . . . Swap 76 | . 3 23 5 22 3 15 5 Drop 68 | . 2 16 8 23 3 10 6 Fire 340 | 5 96 93 23 71 5 . 47 Melee 28 | . . . . 22 6 . . Ram . | . . . . . . . . Kick 2 | . . 2 . . . . . Crush 37 | . 2 7 9 6 7 . 6 Escape Stasis 2 | . . . . . . . 2 Rewire 54 | . . . . . 54 . . Trap . | . . . . . . . . Miscellaneous . | . . . . . . . . Route ------- -11/Scrapyard -10/Materials (discovered 5 exits: *Mat x3 / [*Min] / [*Sub]) -9/Materials (discovered 4 exits: *Mat x2 / Min x2) -8/Materials (discovered 2 exits: *Sto x2) -8/Storage -8/Recycling (discovered 2 exits: *Fac / *Scr) -8/Scraptown -6/Factory (discovered 4 exits: *Fac x2 / Low x2) History --------- Turn | Location | Event 15 | -11/Scrapyard | Discovered new exit (range 16) 79 | -11/Scrapyard | Entered Materials 308 | -10/Materials | Build established: Mutant 410 | -10/Materials | Discovered new exit (range 11) 666 | -10/Materials | Discovered new exit (range 13) 739 | -10/Materials | Discovered new exit (range 5) 836 | -10/Materials | Discovered new exit (range 5) 1037 | -10/Materials | Discovered new exit (range 13) 1257 | -10/Materials | Build established: Scavenger-Mutant 1276 | -10/Materials | Core integrity fell below 50% 1355 | -10/Materials | Core integrity fell below 20% 1393 | -10/Materials | Lost 3 parts (1p1n1w) 1394 | -10/Materials | Entered another Materials area 1394 | -9/Materials | Evolved 2 slots: Utility x2 2385 | -9/Materials | Discovered new exit (range 16) 2508 | -9/Materials | Destroyed 7 combat bots 2544 | -9/Materials | Identified exit to Mines 2802 | -9/Materials | Discovered new exit (range 16) 2876 | -9/Materials | Entered another Materials area 2876 | -8/Materials | Evolved 2 slots: Propulsion x1, Utility x1 2941 | -8/Materials | Identified exit to Storage 3386 | -8/Materials | Entered Storage 3675 | -8/Storage | Lost 3 parts (1n1u1w) 3833 | -8/Storage | Destroyed 7 combat bots 3894 | -8/Storage | Identified exit to Recycling 4105 | -8/Storage | Garrison activated, responded to threat 4315 | -8/Storage | Core integrity fell below 50% 4326 | -8/Storage | Destroyed 7 combat bots 4337 | -8/Storage | Used back door to open Recycling access 4341 | -8/Storage | Entered Recycling 4960 | -8/Recycling | Build established: Commander-Mutant 4964 | -8/Recycling | Discovered new exit (range 19) 4999 | -8/Recycling | Scanned before Scraplab entrance 5022 | -8/Recycling | Entered Scraplab 5036 | -8/Recycling | Discovered new exit (range 3) 5061 | -8/Recycling | Entered Scraptown 5061 | -8/Scraptown | Accompanied by 9 allies 5061 | -8/Scraptown | System corruption cleaned by C-Scrubber 5233 | -8/Scraptown | Visited UFD Registry 5233 | -8/Scraptown | Registered with UFD as "Megamachine" 5273 | -8/Scraptown | Visited Science Testing Area 5312 | -8/Scraptown | Visited Assassins FH 5323 | -8/Scraptown | Visited SPCMW 5357 | -8/Scraptown | Visited Comm Corps 5394 | -8/Scraptown | Visited A0-MCA Data Center 5411 | -8/Scraptown | Given a B rating by A0-MCA 5416 | -8/Scraptown | Found A0-MCA's Component Scanner 5501 | -8/Scraptown | Visited DA-N13 Charitable Foundation 5515 | -8/Scraptown | Found DCF Scrap (30 items) 5632 | -8/Scraptown | Visited Cartography Club 5687 | -8/Scraptown | Learned location of Storage (-8) 5687 | -8/Scraptown | Learned location of Upper Caves (-4) 5687 | -8/Scraptown | Learned location of Zion (-6) 5687 | -8/Scraptown | Learned location of Hub_04(d) (-5) 5687 | -8/Scraptown | Learned location of Testing (-2) 5687 | -8/Scraptown | Learned 8 Materials zone layouts 5687 | -8/Scraptown | Learned 12 Materials zone layouts 5687 | -8/Scraptown | Learned 16 Research zone layouts 5687 | -8/Scraptown | Learned 4 Mines zone layouts 5687 | -8/Scraptown | Learned 16 Lower Caves zone layouts 5687 | -8/Scraptown | Learned 20 Lower Caves zone layouts 5687 | -8/Scraptown | Learned 20 Upper Caves zone layouts 5687 | -8/Scraptown | Learned 16 Proximity Caves zone layouts 5687 | -8/Scraptown | Learned 4 Armory zone layouts 5687 | -8/Scraptown | Learned Storage emergency access door positions 5687 | -8/Scraptown | Learned location of 1 exit from Factory 5687 | -8/Scraptown | Learned location of 1 exit from Upper Caves 5687 | -8/Scraptown | Learned location of 2 exits from Upper Caves 5698 | -8/Scraptown | Found Deep Structural Scanner 5807 | -8/Scraptown | Visited Scrapoid Research Area 6095 | -8/Scraptown | Met Optimus 6095 | -8/Scraptown | Accepted into 0bPrime 6178 | -8/Scraptown | Discovered new exit (range 5) 6224 | -8/Scraptown | Entered Factory 6224 | -6/Factory | Accompanied by 7 allies 6224 | -6/Factory | Evolved 4 slots: Propulsion x2, Utility x2 6225 | -6/Factory | Identified exit to Lower Caves 6226 | -6/Factory | Identified exit to Factory 6282 | -6/Factory | Loaded intel: 8 recycling unit locations 6549 | -6/Factory | Lost 4 allies 6742 | -6/Factory | Build established: Hacker-Mutant 7053 | -6/Factory | Found Scatter Rocket Array 7057 | -6/Factory | Found Scatter Rocket Array 7174 | -6/Factory | Cargo convoy interrupted 7291 | -6/Factory | Learned location of Protoforge (-2) 7405 | -6/Factory | Lost 4 parts (1p2n1w) 7439 | -6/Factory | Discovered exit to Factory (range 15) 7449 | -6/Factory | Core integrity fell below 50% 7455 | -6/Factory | Core integrity fell below 20% 7458 | -6/Factory | Destroyed by H-61 Shepherd with Heavy Assault Cannon Last Messages --------------- 07450_ Slug penetrates Earth. 07450_ Penetrated by Slug. 07450_ Scatter Rocket Array destroyed. 07450_ U-05 Engineer builds a Wall. 07451_ System corrupted: Matter fused (-5). 07451_ The unstable cave ceiling collapses. 07452_ Knocked back. 07453_ Slug penetrates Wall. 07453_ Slug penetrates Earth. 07454_ Cesium-ion Thruster+ destroyed. 07454_ Penetrated by Slug. 07455_ Acquired 4 matter. 07456_ U-05 Engineer lays Concrete. 07457_ Penetrated by Slug. 07457_ Imp. Cesium-ion Thruster destroyed. 07457_ Penetrated by Slug. 07457_ U-05 Engineer lays Concrete. 07458_ The unstable cave ceiling collapses. 07458_ U-05 Engineer lays Concrete. 07458_ Slug penetrates Earth. Map ----- +----------------------------------------------------+ | ?????????????????????????????????????????????????? | | ?????????????????????????????????????????????????? | | ?????????????????????????????????????????????????? | | ?????????????????????????????????????????????????? | | ?????????????????????????????????????????????????? | | ?????????????????????????????????????????????????? | | ?????????????????????????????????????????????????? | | ?????????????????????????????????????????????????? | | ?????????????????????####????####????????????????? | | ????????????????????? # #### # ########?????????? | | ????????????########## #T # #????????? | | ????????????# ##???????? | | ????????????# ???????? | | ????????????# ??????? | | ????????????# hh ??????? | | ????????????# H ??????? | | ????????????# ???????? | | ????????###?# H #????????? | | ###?????## # ??????????? | | ""######## # ????????????? | | % #?????????????? | | # #?????????????? | | """" """"""" #??????????????? | | """" """"""" o # ????????????????? | | """" """"""" %% ############???????? | | """" """"""" @% g g gg w ?? | | % % #######???????????? | | """" """"""" % # #####?????????????????? | | """" """"""" u " #?????????????????????? | | """" """"""" u#### ##?????????????????????? | | ?""" """"""" # #??????????????????????? | | ?? ######??????????????????????? | | ?? "" "" ?????????????????????????????? | | ??? "F "" ?????????????????????????????? | | ?? """"" ????????????????????????????? | | ???+#################????????????????????????????? | | ?????????????????????????????????????????????????? | | ?????????????????????????????????????????????????? | | ?????????????????????????????????????????????????? | | ?????????????????????????????????????????????????? | | ?????????????????????????????????????????????????? | | ?????????????????????????????????????????????????? | | ?????????????????????????????????????????????????? | | ?????????????????????????????????????????????????? | | ?????????????????????????????????????????????????? | | ?????????????????????????????????????????????????? | | ?????????????????????????????????????????????????? | | ?????????????????????????????????????????????????? | | ?????????????????????????????????????????????????? | | ?????????????????????????????????????????????????? | +----------------------------------------------------+ Best States ------------- Heat Dissipation 45 Energy Generation 18 Energy Capacity 300 Matter Stores 300 Matter Capacity 300 Sight Range 22 Terrain Scan Density 10 Base Temperature (-) 150 Armor Coverage 525 Resistance: EM 15 Evasion (%) 64 Targeting Accuracy 6 Recoil Reduction 3 Offensive Hacking 20 Defensive Hacking 10 Item Schematics ----------------- System Restoration Module | -8/Recycling | Hacked Hvy. Armor Plating | -8/Recycling | Hacked Adv. Targeting Computer | -8/Recycling | Hacked Reaction Control System | -8/Recycling | Hacked Gravmag System | -8/Recycling | Hacked Hacking Suite | -8/Recycling | Hacked Robot Schematics ------------------ None Fabricated ------------ Nothing Repaired ---------- Nothing Studied --------- Cesium-ion Thruster | -6/Factory | Hacked Magnetic Acceleration Cannon | -6/Factory | Hacked Hvy. Plasma Cannon | -6/Factory | Hacked Alien Tech Used ----------------- None Achievements -------------- None Challenges ------------ None Game ------ Seed InterceptPrecisionWeb Manual? 0 Play Time 00:44:57 Cumulative 239.1 hours Start 2026.09.13 @ 17:28:15 End 2026.09.13 @ 20:08:16 Sessions 3 Manual Loads 0 Difficulty Rogue Special Mode None Game No. 350 Rogue 350 Adventurer 0 Explorer 0 Win Type - Total 1 Types 1/0/0/0/0/0/0/0/0/0 Lore% 70 Gallery% 63 Achievement% 47 Wizard Run 0 Options --------- Layout 1 ASCII 0 Keyboard 1 Movement Arrows Keybinds 0 Fullscreen 1 Font 24/Smallcaps Map View 50x35 Zoom Use 0% Tactical HUD 1 Map Filters NONE Filters NONE Steam 1 RUN: c4bbddca-34c9-463e-8e17-1e78d4588735